[Event "Early-Titled-Tuesday-Blitz-April-16-2024"]
[Site "Chess.com"]
[Date "2024.04.16"]
[Round "1"]
[White "FabianoCaruana"]
[Black "komogro"]
[Result "1-0"]
[WhiteElo "3088"]
[BlackElo "2536"]
[TimeControl "180+1"]
[EndTime "8:04:46 PDT"]
[Termination "FabianoCaruana won on time"]

1. g3 {[%clk 0:03:00.9]} 1... g6 {[%clk 0:02:56.3]} 2. Bg2 {[%clk 0:03:01.8]}
2... Bg7 {[%clk 0:02:57.2]} 3. Nf3 {[%clk 0:03:01.6]} 3... d6 {[%clk 0:02:57.3]}
4. O-O {[%clk 0:03:02.1]} 4... e5 {[%clk 0:02:55.2]} 5. e4 {[%clk 0:03:02.5]}
5... Ne7 {[%clk 0:02:54.8]} 6. d3 {[%clk 0:03:03.1]} 6... c5 {[%clk 0:02:52.5]}
7. c4 {[%clk 0:03:04]} 7... Nbc6 {[%clk 0:02:50.8]} 8. Nc3 {[%clk 0:03:04.9]}
8... O-O {[%clk 0:02:50.8]} 9. Rb1 {[%clk 0:03:04.7]} 9... h6 {[%clk 0:02:50.7]}
10. a3 {[%clk 0:03:03.2]} 10... a5 {[%clk 0:02:46.4]} 11. Ne1 {[%clk 0:03:02.3]}
11... Nd4 {[%clk 0:02:41.2]} 12. Nc2 {[%clk 0:03:01.4]} 12... f5 {[%clk
0:02:40.9]} 13. exf5 {[%clk 0:03:00.1]} 13... Nxc2 {[%clk 0:02:25.3]} 14. Qxc2
{[%clk 0:02:59.2]} 14... Nxf5 {[%clk 0:02:25.2]} 15. Be3 {[%clk 0:02:59.7]}
15... Kh7 {[%clk 0:02:15.8]} 16. Rbe1 {[%clk 0:02:58.5]} 16... Rb8 {[%clk
0:02:05.6]} 17. Be4 {[%clk 0:02:57.3]} 17... Be6 {[%clk 0:02:03.2]} 18. Qd1
{[%clk 0:02:53.6]} 18... Qd7 {[%clk 0:02:00]} 19. a4 {[%clk 0:02:52.2]} 19... b6
{[%clk 0:01:58.6]} 20. h4 {[%clk 0:02:50.3]} 20... h5 {[%clk 0:01:50.1]} 21. Kh2
{[%clk 0:02:47.4]} 21... Kg8 {[%clk 0:01:45.8]} 22. Nd5 {[%clk 0:02:45.8]} 22...
Rf7 {[%clk 0:00:24.1]} 23. Bg5 {[%clk 0:02:43]} 23... Kh7 {[%clk 0:00:08]} 24.
f3 {[%clk 0:02:36.8]} 24... Bxd5 {[%clk 0:00:06.1]} 25. Bxd5 {[%clk 0:02:36.3]}
25... Rff8 {[%clk 0:00:06.1]} 26. Be4 {[%clk 0:02:35.4]} 26... Nd4 {[%clk
0:00:05.2]} 27. f4 {[%clk 0:02:34.8]} 27... Nf5 {[%clk 0:00:01.3]} 28. g4 {[%clk
0:02:33.4]} 28... hxg4 {[%clk 0:00:01.4]} 29. Qxg4 {[%clk 0:02:34.3]} 29... Kg8
{[%clk 0:00:01.4]} 30. Bd5+ {[%clk 0:02:33.4]} 1-0

[Event "Early-Titled-Tuesday-Blitz-April-16-2024"]
[Site "Chess.com"]
[Date "2024.04.16"]
[Round "1"]
[White "JSPrepz"]
[Black "Denisenko_Denis"]
[Result "1-0"]
[WhiteElo "2816"]
[BlackElo "2458"]
[TimeControl "180+1"]
[EndTime "8:04:49 PDT"]
[Termination "JSPrepz won by resignation"]

1. e4 {[%clk 0:03:00.9]} 1... e5 {[%clk 0:02:58.9]} 2. Nf3 {[%clk 0:03:00.1]}
2... Nf6 {[%clk 0:02:58.6]} 3. Nc3 {[%clk 0:02:59.8]} 3... Nc6 {[%clk
0:02:55.8]} 4. a3 {[%clk 0:03:00.2]} 4... d5 {[%clk 0:02:54.4]} 5. Bb5 {[%clk
0:02:59.6]} 5... dxe4 {[%clk 0:02:45.4]} 6. Nxe5 {[%clk 0:02:59.5]} 6... Qd6
{[%clk 0:02:39.7]} 7. d4 {[%clk 0:02:59.8]} 7... exd3 {[%clk 0:02:36]} 8. O-O
{[%clk 0:02:49.9]} 8... Be7 {[%clk 0:02:31.8]} 9. Bf4 {[%clk 0:02:50]} 9... dxc2
{[%clk 0:02:21.6]} 10. Qxc2 {[%clk 0:02:48.2]} 10... Qd4 {[%clk 0:02:20.7]} 11.
Nxc6 {[%clk 0:02:33.5]} 11... Qxf4 {[%clk 0:02:19.8]} 12. Rfe1 {[%clk
0:02:20.4]} 12... Be6 {[%clk 0:02:17.6]} 13. Nd4+ {[%clk 0:01:51.6]} 13... c6
{[%clk 0:02:14.4]} 14. Nxc6 {[%clk 0:01:52]} 14... bxc6 {[%clk 0:01:57.5]} 15.
Bxc6+ {[%clk 0:01:51.8]} 15... Nd7 {[%clk 0:01:56.8]} 16. Bxa8 {[%clk
0:01:34.7]} 16... O-O {[%clk 0:01:56.5]} 17. Nd5 {[%clk 0:01:32.5]} 17... Bxd5
{[%clk 0:01:44.2]} 18. Bxd5 {[%clk 0:01:33.4]} 18... Bf6 {[%clk 0:01:37.7]} 19.
Rad1 {[%clk 0:01:32.1]} 19... Ne5 {[%clk 0:01:37.5]} 20. Qe4 {[%clk 0:01:30.8]}
20... Qxe4 {[%clk 0:01:29.6]} 21. Rxe4 {[%clk 0:01:29.8]} 21... Rc8 {[%clk
0:01:25.2]} 22. b4 {[%clk 0:01:27.9]} 22... h5 {[%clk 0:01:24]} 23. b5 {[%clk
0:01:26.9]} 23... Rc3 {[%clk 0:01:23.3]} 24. a4 {[%clk 0:01:26.5]} 24... Rc2
{[%clk 0:01:18.5]} 25. h3 {[%clk 0:01:26]} 25... Rb2 {[%clk 0:01:17.8]} 26. Rde1
{[%clk 0:01:18]} 26... Nd3 {[%clk 0:01:12.6]} 27. Re8+ {[%clk 0:01:18.2]} 27...
Kh7 {[%clk 0:01:12.6]} 28. Be4+ {[%clk 0:01:19.1]} 1-0

[Event "Early-Titled-Tuesday-Blitz-April-16-2024"]
[Site "Chess.com"]
[Date "2024.04.16"]
[Round "1"]
[White "Orphanator2009"]
[Black "artin10862"]
[Result "0-1"]
[WhiteElo "2516"]
[BlackElo "2948"]
[TimeControl "180+1"]
[EndTime "8:04:50 PDT"]
[Termination "artin10862 won by resignation"]

1. e4 {[%clk 0:03:00.9]} 1... e5 {[%clk 0:02:57.1]} 2. Nf3 {[%clk 0:03:00.5]}
2... Nc6 {[%clk 0:02:57.6]} 3. Bc4 {[%clk 0:02:59.9]} 3... Bc5 {[%clk
0:02:54.3]} 4. d3 {[%clk 0:03:00.2]} 4... Nf6 {[%clk 0:02:53.5]} 5. Be3 {[%clk
0:03:00.1]} 5... d6 {[%clk 0:02:50.2]} 6. O-O {[%clk 0:03:00.1]} 6... O-O {[%clk
0:02:47.2]} 7. Nc3 {[%clk 0:02:59.6]} 7... Bg4 {[%clk 0:02:44.4]} 8. h3 {[%clk
0:02:58]} 8... Bh5 {[%clk 0:02:43.7]} 9. a3 {[%clk 0:02:38.9]} 9... Nd4 {[%clk
0:02:41.3]} 10. Bxd4 {[%clk 0:02:37.4]} 10... Bxd4 {[%clk 0:02:40.3]} 11. Qd2
{[%clk 0:01:58.8]} 11... Bxf3 {[%clk 0:02:20.5]} 12. gxf3 {[%clk 0:01:59.7]}
12... Nh5 {[%clk 0:02:19.7]} 13. Ne2 {[%clk 0:01:35.1]} 13... Bxb2 {[%clk
0:02:08.4]} 14. Rab1 {[%clk 0:01:31.6]} 14... Bxa3 {[%clk 0:02:07]} 15. Rxb7
{[%clk 0:01:31]} 15... Bc5 {[%clk 0:02:02.2]} 16. Kg2 {[%clk 0:01:19.8]} 16...
Bb6 {[%clk 0:02:00.3]} 17. c3 {[%clk 0:01:12]} 17... Qc8 {[%clk 0:01:50.6]} 18.
Ba6 {[%clk 0:01:08.6]} 18... Qe6 {[%clk 0:01:50]} 19. d4 {[%clk 0:01:07.4]}
19... Kh8 {[%clk 0:01:47.7]} 20. d5 {[%clk 0:01:06.9]} 20... Qe7 {[%clk
0:01:40.4]} 21. c4 {[%clk 0:01:03.5]} 21... f5 {[%clk 0:01:39.6]} 22. Bb5 {[%clk
0:00:53.2]} 22... Rf6 {[%clk 0:01:29.5]} 0-1

[Event "Early-Titled-Tuesday-Blitz-April-16-2024"]
[Site "Chess.com"]
[Date "2024.04.16"]
[Round "1"]
[White "GatoRojo150"]
[Black "H3nriqueTV"]
[Result "1-0"]
[WhiteElo "2609"]
[BlackElo "2288"]
[TimeControl "180+1"]
[EndTime "8:04:50 PDT"]
[Termination "GatoRojo150 won by resignation"]

1. e4 {[%clk 0:03:00.9]} 1... c5 {[%clk 0:02:53.8]} 2. Nf3 {[%clk 0:02:59.9]}
2... d6 {[%clk 0:02:54.3]} 3. Nc3 {[%clk 0:02:56.8]} 3... Nc6 {[%clk 0:00:35.1]}
4. d4 {[%clk 0:02:54.2]} 4... cxd4 {[%clk 0:00:34.8]} 5. Nxd4 {[%clk 0:02:55.1]}
5... Nf6 {[%clk 0:00:35.3]} 6. Bc4 {[%clk 0:02:54]} 6... e6 {[%clk 0:00:35.6]}
7. Bb3 {[%clk 0:02:51.4]} 7... a6 {[%clk 0:00:36.1]} 8. Be3 {[%clk 0:02:51.3]}
8... Be7 {[%clk 0:00:36.8]} 9. O-O {[%clk 0:02:51.8]} 9... O-O {[%clk
0:00:37.5]} 10. f4 {[%clk 0:02:52.5]} 10... Qc7 {[%clk 0:00:36.3]} 11. f5 {[%clk
0:02:52.3]} 11... e5 {[%clk 0:00:35.2]} 12. Nde2 {[%clk 0:02:52.5]} 12... Bd7
{[%clk 0:00:33.5]} 13. Ng3 {[%clk 0:02:52.6]} 13... Rad8 {[%clk 0:00:27.5]} 14.
Nd5 {[%clk 0:02:52.3]} 14... Nxd5 {[%clk 0:00:27.4]} 15. Bxd5 {[%clk 0:02:53.2]}
15... Nb4 {[%clk 0:00:26]} 16. f6 {[%clk 0:02:48.3]} 16... Nxd5 {[%clk
0:00:20.9]} 17. exd5 {[%clk 0:02:43.7]} 17... gxf6 {[%clk 0:00:20.6]} 18. Bh6
{[%clk 0:02:31.4]} 18... Rfe8 {[%clk 0:00:20.5]} 19. Nh5 {[%clk 0:02:05.6]}
19... f5 {[%clk 0:00:17.1]} 20. Qd3 {[%clk 0:01:54.8]} 20... e4 {[%clk
0:00:15.7]} 21. Qg3+ {[%clk 0:01:48.8]} 1-0

[Event "Early-Titled-Tuesday-Blitz-April-16-2024"]
[Site "Chess.com"]
[Date "2024.04.16"]
[Round "1"]
[White "Nutflush"]
[Black "KubaGepard"]
[Result "0-1"]
[WhiteElo "2136"]
[BlackElo "2568"]
[TimeControl "180+1"]
[EndTime "8:04:53 PDT"]
[Termination "KubaGepard won by checkmate"]

1. e4 {[%clk 0:02:52.8]} 1... e5 {[%clk 0:02:59]} 2. Nf3 {[%clk 0:02:52.2]} 2...
Nc6 {[%clk 0:02:59.5]} 3. Bc4 {[%clk 0:02:52.8]} 3... Bc5 {[%clk 0:02:59.3]} 4.
c3 {[%clk 0:02:52.6]} 4... Nf6 {[%clk 0:02:59.9]} 5. d4 {[%clk 0:02:53.3]} 5...
exd4 {[%clk 0:03:00.5]} 6. O-O {[%clk 0:02:53.7]} 6... Nxe4 {[%clk 0:02:56.9]}
7. cxd4 {[%clk 0:02:53.5]} 7... d5 {[%clk 0:02:57.5]} 8. dxc5 {[%clk 0:02:53.9]}
8... dxc4 {[%clk 0:02:58.1]} 9. Qe2 {[%clk 0:02:54.3]} 9... Qd3 {[%clk
0:02:58.6]} 10. Re1 {[%clk 0:02:54.1]} 10... f5 {[%clk 0:02:58.7]} 11. Nbd2
{[%clk 0:02:53.9]} 11... O-O {[%clk 0:02:58.4]} 12. Nxe4 {[%clk 0:02:53.8]}
12... fxe4 {[%clk 0:02:59.1]} 13. Qxe4 {[%clk 0:02:52.3]} 13... Bf5 {[%clk
0:02:59.1]} 14. Qh4 {[%clk 0:02:51.6]} 14... Bg6 {[%clk 0:02:48.5]} 15. Bf4
{[%clk 0:02:48.5]} 15... Rae8 {[%clk 0:02:45.5]} 16. Bxc7 {[%clk 0:02:46.5]}
16... Rxf3 {[%clk 0:02:43.3]} 17. Rxe8+ {[%clk 0:02:29.5]} 17... Bxe8 {[%clk
0:02:44.2]} 18. gxf3 {[%clk 0:02:29.5]} 18... Nd4 {[%clk 0:02:43.8]} 19. Qe7
{[%clk 0:02:03.7]} 19... Bc6 {[%clk 0:02:30.3]} 20. Bd6 {[%clk 0:00:10.8]} 20...
Nxf3+ {[%clk 0:02:13.3]} 21. Kg2 {[%clk 0:00:10.2]} 21... Nd4+ {[%clk
0:02:11.4]} 22. Kg1 {[%clk 0:00:09.4]} 22... Ne2+ {[%clk 0:02:07.5]} 23. Kf1
{[%clk 0:00:06.9]} 23... Nf4+ {[%clk 0:02:07]} 24. Kg1 {[%clk 0:00:01.6]} 24...
Nh3# {[%clk 0:02:07]} 0-1

[Event "Early-Titled-Tuesday-Blitz-April-16-2024"]
[Site "Chess.com"]
[Date "2024.04.16"]
[Round "1"]
[White "temiksmozg"]
[Black "AlainBruxelles"]
[Result "1-0"]
[WhiteElo "2651"]
[BlackElo "2350"]
[TimeControl "180+1"]
[EndTime "8:05:03 PDT"]
[Termination "temiksmozg won by resignation"]

1. d4 {[%clk 0:03:00.9]} 1... d5 {[%clk 0:02:58.5]} 2. c4 {[%clk 0:03:01]} 2...
dxc4 {[%clk 0:02:57]} 3. e3 {[%clk 0:03:00.9]} 3... Nf6 {[%clk 0:02:57.2]} 4.
Bxc4 {[%clk 0:03:01]} 4... e6 {[%clk 0:02:57.9]} 5. Nf3 {[%clk 0:03:00.7]} 5...
c5 {[%clk 0:02:58.6]} 6. O-O {[%clk 0:03:01]} 6... a6 {[%clk 0:02:59.2]} 7. a4
{[%clk 0:03:00.5]} 7... Nc6 {[%clk 0:02:58.8]} 8. Qe2 {[%clk 0:03:00.9]} 8...
cxd4 {[%clk 0:02:56.6]} 9. Rd1 {[%clk 0:03:00.7]} 9... Be7 {[%clk 0:02:55.7]}
10. exd4 {[%clk 0:02:53.9]} 10... Nb4 {[%clk 0:02:55.3]} 11. Nc3 {[%clk
0:02:53.6]} 11... O-O {[%clk 0:02:51.6]} 12. Ne5 {[%clk 0:02:52.1]} 12... b6
{[%clk 0:02:49]} 13. Bg5 {[%clk 0:02:42.9]} 13... Bb7 {[%clk 0:02:46.9]} 14.
Rac1 {[%clk 0:02:40.3]} 14... Nbd5 {[%clk 0:02:46]} 15. Nxd5 {[%clk 0:02:16.6]}
15... Nxd5 {[%clk 0:02:35.9]} 16. Bxe7 {[%clk 0:02:16.2]} 16... Qxe7 {[%clk
0:02:33.9]} 17. Bxd5 {[%clk 0:02:13.2]} 17... Bxd5 {[%clk 0:02:32.9]} 18. Rc3
{[%clk 0:02:13.7]} 18... f6 {[%clk 0:02:18.2]} 19. Nd3 {[%clk 0:02:08.5]} 19...
Rac8 {[%clk 0:02:13.3]} 20. Nf4 {[%clk 0:02:06.2]} 20... Qb7 {[%clk 0:01:57.7]}
21. Nxd5 {[%clk 0:01:41.7]} 21... Qxd5 {[%clk 0:01:57]} 22. Qxa6 {[%clk
0:01:37.5]} 22... Ra8 {[%clk 0:01:46.4]} 23. Qxb6 {[%clk 0:01:17]} 23... Rxa4
{[%clk 0:01:45.6]} 24. b4 {[%clk 0:01:13.8]} 24... Rfa8 {[%clk 0:01:37.8]} 25.
h3 {[%clk 0:01:11.7]} 25... Ra1 {[%clk 0:01:36.6]} 26. Rxa1 {[%clk 0:01:11]}
26... Rxa1+ {[%clk 0:01:36.6]} 27. Kh2 {[%clk 0:01:11.5]} 27... h6 {[%clk
0:01:30.1]} 28. Re3 {[%clk 0:01:03.6]} 28... e5 {[%clk 0:01:22.8]} 29. dxe5
{[%clk 0:01:03.1]} 29... fxe5 {[%clk 0:01:23.2]} 30. Qb8+ {[%clk 0:01:03.3]}
30... Kh7 {[%clk 0:01:22.4]} 31. Qxe5 {[%clk 0:01:02.1]} 31... Qd1 {[%clk
0:01:22.2]} 32. Qf5+ {[%clk 0:01:00.1]} 1-0

[Event "Early-Titled-Tuesday-Blitz-April-16-2024"]
[Site "Chess.com"]
[Date "2024.04.16"]
[Round "1"]
[White "Itay121"]
[Black "dianamirza"]
[Result "1-0"]
[WhiteElo "2554"]
[BlackElo "1955"]
[TimeControl "180+1"]
[EndTime "8:05:03 PDT"]
[Termination "Itay121 won by resignation"]

1. e4 {[%clk 0:02:38.6]} 1... b6 {[%clk 0:02:52.8]} 2. d4 {[%clk 0:02:38.2]}
2... c5 {[%clk 0:02:53]} 3. d5 {[%clk 0:02:35.3]} 3... Bb7 {[%clk 0:02:48.9]} 4.
Nf3 {[%clk 0:02:31.6]} 4... g6 {[%clk 0:02:22.3]} 5. Nc3 {[%clk 0:02:30]} 5...
Bg7 {[%clk 0:02:01.4]} 6. e5 {[%clk 0:02:25.2]} 6... d6 {[%clk 0:01:57.5]} 7. e6
{[%clk 0:02:22.6]} 7... fxe6 {[%clk 0:01:55.9]} 8. Bb5+ {[%clk 0:02:21.4]} 8...
Kf8 {[%clk 0:01:37.6]} 9. Ng5 {[%clk 0:02:12]} 9... Bc8 {[%clk 0:01:30.8]} 10.
dxe6 {[%clk 0:02:05.1]} 10... Nh6 {[%clk 0:01:15.5]} 11. Qf3+ {[%clk 0:01:57.1]}
11... Bf6 {[%clk 0:01:07]} 12. Nge4 {[%clk 0:01:39.6]} 12... Nf5 {[%clk
0:00:54.2]} 13. Nxf6 {[%clk 0:01:32]} 13... exf6 {[%clk 0:00:49.4]} 14. Qxa8
{[%clk 0:01:30.9]} 14... Bxe6 {[%clk 0:00:46.3]} 15. O-O {[%clk 0:01:27.9]}
15... Nd4 {[%clk 0:00:39.5]} 16. Qxa7 {[%clk 0:01:23]} 16... Nxc2 {[%clk
0:00:26.9]} 17. Bh6+ {[%clk 0:01:20.1]} 1-0

[Event "Early-Titled-Tuesday-Blitz-April-16-2024"]
[Site "Chess.com"]
[Date "2024.04.16"]
[Round "1"]
[White "Paralinch"]
[Black "WindWhistler11"]
[Result "0-1"]
[WhiteElo "2921"]
[BlackElo "2526"]
[TimeControl "180+1"]
[EndTime "8:05:21 PDT"]
[Termination "WindWhistler11 won by resignation"]

1. e4 {[%clk 0:03:00.9]} 1... e6 {[%clk 0:02:59.2]} 2. d4 {[%clk 0:03:00.5]}
2... d5 {[%clk 0:02:59.7]} 3. exd5 {[%clk 0:03:01.4]} 3... exd5 {[%clk
0:02:59.3]} 4. Nf3 {[%clk 0:03:02.1]} 4... Nc6 {[%clk 0:02:59.7]} 5. Bb5 {[%clk
0:03:02]} 5... Ne7 {[%clk 0:03:00]} 6. O-O {[%clk 0:02:58.6]} 6... Bg4 {[%clk
0:02:59.7]} 7. c3 {[%clk 0:02:41.4]} 7... g6 {[%clk 0:02:43.9]} 8. h3 {[%clk
0:02:31.4]} 8... Bf5 {[%clk 0:02:35.2]} 9. Ne5 {[%clk 0:02:10.3]} 9... Bg7
{[%clk 0:02:30.8]} 10. Bg5 {[%clk 0:02:07.6]} 10... f6 {[%clk 0:02:26.4]} 11. g4
{[%clk 0:02:03.8]} 11... Bxb1 {[%clk 0:02:20.9]} 12. Bxf6 {[%clk 0:02:02.4]}
12... Bxf6 {[%clk 0:02:19.5]} 13. Rxb1 {[%clk 0:02:02.9]} 13... a6 {[%clk
0:02:05.7]} 14. Ba4 {[%clk 0:02:02.4]} 14... b5 {[%clk 0:02:02.6]} 15. Nxc6
{[%clk 0:02:02.1]} 15... Nxc6 {[%clk 0:02:02.2]} 16. Re1+ {[%clk 0:02:02.5]}
16... Kf7 {[%clk 0:01:55.8]} 17. Bb3 {[%clk 0:02:02.7]} 17... Na5 {[%clk
0:01:49]} 18. Bc2 {[%clk 0:02:00.4]} 18... Nc4 {[%clk 0:01:43]} 19. b3 {[%clk
0:01:55.5]} 19... Na3 {[%clk 0:01:40.5]} 20. Rb2 {[%clk 0:01:56.1]} 20... Nxc2
{[%clk 0:01:38.3]} 21. Rxc2 {[%clk 0:01:57]} 21... Re8 {[%clk 0:01:36.8]} 22.
Rce2 {[%clk 0:01:48.6]} 22... Qd7 {[%clk 0:01:27.8]} 23. Qd3 {[%clk 0:01:36.7]}
23... Rxe2 {[%clk 0:01:27.3]} 24. Rxe2 {[%clk 0:01:37.6]} 24... Re8 {[%clk
0:01:26.2]} 25. Rc2 {[%clk 0:01:33]} 25... Re1+ {[%clk 0:01:22]} 26. Kg2 {[%clk
0:01:33.3]} 26... c6 {[%clk 0:01:08.7]} 27. c4 {[%clk 0:01:32.8]} 27... dxc4
{[%clk 0:01:07.6]} 28. bxc4 {[%clk 0:01:33.7]} 28... Qxd4 {[%clk 0:01:03.8]} 29.
Qxd4 {[%clk 0:01:27.3]} 29... Bxd4 {[%clk 0:01:03.4]} 30. cxb5 {[%clk
0:01:28.2]} 30... cxb5 {[%clk 0:00:59.6]} 31. a4 {[%clk 0:01:27.7]} 31... b4
{[%clk 0:00:54.9]} 32. Rc7+ {[%clk 0:01:26.4]} 32... Re7 {[%clk 0:00:47.7]} 33.
Rc4 {[%clk 0:01:26.9]} 33... Bc3 {[%clk 0:00:43.7]} 34. Kf3 {[%clk 0:01:27.3]}
34... Rb7 {[%clk 0:00:43.7]} 0-1

[Event "Early-Titled-Tuesday-Blitz-April-16-2024"]
[Site "Chess.com"]
[Date "2024.04.16"]
[Round "1"]
[White "Juicy_Fork"]
[Black "DenLaz"]
[Result "0-1"]
[WhiteElo "2536"]
[BlackElo "3120"]
[TimeControl "180+1"]
[EndTime "8:05:22 PDT"]
[Termination "DenLaz won by resignation"]

1. e4 {[%clk 0:03:00.9]} 1... c5 {[%clk 0:02:59.9]} 2. Nf3 {[%clk 0:03:00.6]}
2... e6 {[%clk 0:03:00.5]} 3. d4 {[%clk 0:03:00.9]} 3... cxd4 {[%clk 0:03:01.4]}
4. Nxd4 {[%clk 0:03:01.6]} 4... Nc6 {[%clk 0:03:02.1]} 5. Nc3 {[%clk 0:02:59.2]}
5... Qc7 {[%clk 0:03:02.2]} 6. a3 {[%clk 0:02:59]} 6... a6 {[%clk 0:03:01.7]} 7.
Be3 {[%clk 0:02:59]} 7... Nf6 {[%clk 0:03:02.1]} 8. f4 {[%clk 0:02:56.2]} 8...
d6 {[%clk 0:03:02.6]} 9. Qf3 {[%clk 0:02:55.3]} 9... Bd7 {[%clk 0:03:03]} 10.
O-O-O {[%clk 0:02:55.2]} 10... Rc8 {[%clk 0:03:03.6]} 11. g4 {[%clk 0:02:54.2]}
11... Nxd4 {[%clk 0:02:59.3]} 12. Rxd4 {[%clk 0:02:55.1]} 12... d5 {[%clk
0:02:54.6]} 13. exd5 {[%clk 0:02:07.3]} 13... Nxd5 {[%clk 0:02:54.2]} 14. Rc4
{[%clk 0:02:05.8]} 14... Bc6 {[%clk 0:02:44.3]} 15. Nxd5 {[%clk 0:01:53.3]}
15... exd5 {[%clk 0:02:42.7]} 16. Rd4 {[%clk 0:01:41.8]} 16... Bc5 {[%clk
0:02:41.6]} 17. Bd3 {[%clk 0:01:36.9]} 17... O-O {[%clk 0:02:28.1]} 18. Qh3
{[%clk 0:01:29.1]} 18... g6 {[%clk 0:02:26.6]} 19. f5 {[%clk 0:01:25.5]} 19...
Rfe8 {[%clk 0:02:13.5]} 20. f6 {[%clk 0:01:16.4]} 20... Qe5 {[%clk 0:02:09.5]}
21. Bf4 {[%clk 0:00:30.9]} 21... Qxd4 {[%clk 0:02:06.8]} 22. Bg5 {[%clk
0:00:31.1]} 22... Bb5 {[%clk 0:02:03.2]} 23. Bxg6 {[%clk 0:00:08.9]} 23... hxg6
{[%clk 0:02:00.3]} 24. Bh6 {[%clk 0:00:08.7]} 24... Re2 {[%clk 0:01:51.1]} 25.
Kb1 {[%clk 0:00:06.6]} 25... Rxc2 {[%clk 0:01:46.8]} 26. Kxc2 {[%clk 0:00:03.5]}
26... Bxa3+ {[%clk 0:01:46.7]} 0-1

[Event "Early-Titled-Tuesday-Blitz-April-16-2024"]
[Site "Chess.com"]
[Date "2024.04.16"]
[Round "1"]
[White "HamedWafa4"]
[Black "Masterbeaterr"]
[Result "0-1"]
[WhiteElo "2801"]
[BlackElo "2481"]
[TimeControl "180+1"]
[EndTime "8:05:32 PDT"]
[Termination "Masterbeaterr won by resignation"]

1. e4 {[%clk 0:03:00.9]} 1... e5 {[%clk 0:02:59.8]} 2. Nf3 {[%clk 0:02:59.7]}
2... Nc6 {[%clk 0:02:59.3]} 3. Bb5 {[%clk 0:02:58.7]} 3... a6 {[%clk 0:02:59.4]}
4. Ba4 {[%clk 0:02:58.7]} 4... Nf6 {[%clk 0:02:59.5]} 5. O-O {[%clk 0:02:58.8]}
5... Nxe4 {[%clk 0:02:59.3]} 6. d4 {[%clk 0:02:58.2]} 6... b5 {[%clk 0:02:58.5]}
7. Bb3 {[%clk 0:02:58.1]} 7... d5 {[%clk 0:02:59.4]} 8. dxe5 {[%clk 0:02:57.1]}
8... Be6 {[%clk 0:02:59.6]} 9. Qe2 {[%clk 0:02:52.5]} 9... Be7 {[%clk
0:02:55.9]} 10. Be3 {[%clk 0:02:44.8]} 10... O-O {[%clk 0:02:53.9]} 11. c3
{[%clk 0:02:44.3]} 11... Na5 {[%clk 0:02:52.2]} 12. Bc2 {[%clk 0:02:43.8]} 12...
Nc4 {[%clk 0:02:52.3]} 13. Bc1 {[%clk 0:02:41]} 13... Bg4 {[%clk 0:02:37.4]} 14.
b3 {[%clk 0:02:37.8]} 14... Nxe5 {[%clk 0:02:32.6]} 15. Bxe4 {[%clk 0:02:29.5]}
15... dxe4 {[%clk 0:02:33.5]} 16. Qxe4 {[%clk 0:02:30.1]} 16... Nxf3+ {[%clk
0:02:28.8]} 17. gxf3 {[%clk 0:02:30.2]} 17... Bh3 {[%clk 0:02:26.9]} 18. Re1
{[%clk 0:02:30]} 18... Bd6 {[%clk 0:02:22.9]} 19. Bf4 {[%clk 0:02:29.1]} 19...
Re8 {[%clk 0:02:14.7]} 20. Qxe8+ {[%clk 0:02:19.5]} 20... Qxe8 {[%clk
0:02:15.6]} 21. Rxe8+ {[%clk 0:02:19.7]} 21... Rxe8 {[%clk 0:02:15.4]} 22. Be3
{[%clk 0:02:12.6]} 22... Bc5 {[%clk 0:02:06.7]} 23. Nd2 {[%clk 0:02:04.1]} 23...
Bxe3 {[%clk 0:02:06.5]} 24. Re1 {[%clk 0:01:53.5]} 24... Bxf2+ {[%clk
0:01:59.5]} 25. Kxf2 {[%clk 0:01:54.4]} 25... Rxe1 {[%clk 0:01:57.9]} 26. Kxe1
{[%clk 0:01:55.3]} 26... Bf5 {[%clk 0:01:51]} 27. b4 {[%clk 0:01:54.9]} 27... f6
{[%clk 0:01:49.9]} 28. Nb3 {[%clk 0:01:55.3]} 28... Kf7 {[%clk 0:01:47.9]} 29.
Nc5 {[%clk 0:01:54.7]} 29... Bc8 {[%clk 0:01:48.4]} 30. Kf2 {[%clk 0:01:54.4]}
30... g5 {[%clk 0:01:46.2]} 31. Ke3 {[%clk 0:01:54.7]} 31... Ke7 {[%clk
0:01:44.6]} 32. Kd4 {[%clk 0:01:53]} 32... h5 {[%clk 0:01:40.1]} 33. Ke4 {[%clk
0:01:50.5]} 33... Kd6 {[%clk 0:01:38.2]} 34. a4 {[%clk 0:01:46.7]} 34... f5+
{[%clk 0:01:33.3]} 35. Ke3 {[%clk 0:01:46.3]} 35... Ke5 {[%clk 0:01:28]} 36. a5
{[%clk 0:01:40.4]} 36... f4+ {[%clk 0:01:25]} 37. Ke2 {[%clk 0:01:39.6]} 37...
Kd5 {[%clk 0:01:23]} 38. Ne4 {[%clk 0:01:23.3]} 38... g4 {[%clk 0:01:23.4]} 39.
Nf6+ {[%clk 0:01:18.5]} 39... Kc4 {[%clk 0:01:23.1]} 40. Nxh5 {[%clk 0:01:19]}
40... gxf3+ {[%clk 0:01:18.8]} 41. Kxf3 {[%clk 0:01:19.9]} 41... Kxc3 {[%clk
0:01:19.4]} 42. Nxf4 {[%clk 0:01:19.7]} 42... Kxb4 {[%clk 0:01:19.2]} 43. h4
{[%clk 0:01:17.3]} 43... Kxa5 {[%clk 0:01:17.7]} 44. h5 {[%clk 0:01:13]} 44...
Bf5 {[%clk 0:01:17.4]} 45. Kg3 {[%clk 0:01:13.2]} 45... b4 {[%clk 0:01:17.3]}
46. Kh4 {[%clk 0:01:13.3]} 46... b3 {[%clk 0:01:16]} 47. Ne2 {[%clk 0:01:13.6]}
47... b2 {[%clk 0:01:13.7]} 0-1